bitfinex/quotes_SOLUSD_20250917
["timestamp","ask_amount","ask_price","bid_price","bid_amount"]
[1758089537289,0.03,235.3,235.29,56.19219623]
[1758089538592,0.03,235.35,235.33,13.59559401]
[1758089538792,0.03,235.35,235.34,49.23127136]
[1758089539180,0.03,235.35,235.34,54.14044277]
[1758089539382,0.03,235.38,235.34,64.76337129]
[1758089539576,0.03,235.38,235.36,28.05076021]
[1758089539777,0.03,235.38,235.36,61.61564124]
[1758089540083,0.03,235.38,235.36,62.27564124]
[1758089540678,0.03,235.38,235.36,61.61564124]
[1758089541075,0.03,235.38,235.36,28.47564124]
[1758089541383,0.03,235.38,235.36,65.43957054]
[1758089542096,0.03,235.38,235.36,32.29957054]
[1758089542284,0.03,235.38,235.36,78.32246558]
[1758089542689,0.03,235.38,235.36,78.74734661]
[1758089542903,0.03,235.38,235.36,46.26734661]
[1758089543101,0.03,235.38,235.36,79.40734661]
[1758089544784,0.03,235.38,235.36,78.74734661]
[1758089545315,0.03,235.38,235.36,79.43734661]
[1758089545607,0.03,235.38,235.36,93.03294062]
[1758089545812,0.03,235.38,235.36,94.30964419]
[1758089550431,0.03,235.38,235.36,92.60805959]
[1758089553308,0.03,235.38,235.36,58.77805959]
[1758089553507,0.03,235.38,235.36,57.15218041]
[1758089553707,0.73,235.37,235.36,14.93365525]
[1758089553923,0.73,235.37,235.36,48.05365525]
[1758089554617,0.73,235.37,235.3,11.31458207]
[1758089554825,0.73,235.37,235.35,2.05076021]
[1758089555021,0.03,235.37,235.36,33.1]
[1758089555611,0.73,235.37,235.36,33.1]
[1758089556209,0.73,235.37,235.36,35.15076021]
[1758089557226,0.73,235.37,235.36,33.1]
[1758089557532,0.73,235.37,235.36,2.05076021]
[1758089557732,0.73,235.37,235.36,35.15076021]
[1758089558939,0.73,235.37,235.36,2.05076021]
[1758089559131,0.73,235.37,235.36,35.15076021]
[1758089559333,0.73,235.37,235.36,33.1]
[1758089559718,0.73,235.37,235.34,2.05076021]
[1758089559918,0.7,235.36,235.35,33.1]
[1758089560121,0.7,235.36,235.32,2.05076021]
[1758089560332,0.7,235.35,235.33,33.1]
[1758089560533,0.7,235.34,235.33,33.1]
[1758089561628,0.7,235.34,235.33,35.15076021]
[1758089561826,0.7,235.34,235.33,33.1]
[1758089562132,0.7,235.34,235.33,35.15076021]
[1758089567041,0.7,235.34,235.33,33.1]
[1758089567519,0.7,235.34,235.33,35.15076021]
[1758089569251,0.7,235.34,235.33,2.05076021]
[1758089569452,0.7,235.34,235.33,35.15076021]
[1758089570630,0.03,235.37,235.33,35.15076021]
[1758089570838,0.7,235.36,235.33,35.15076021]
[1758089571039,0.7,235.35,235.33,33.1]
[1758089571238,0.7,235.34,235.33,33.1]
[1758089573854,0.7,235.35,235.33,33.1]
[1758089577234,0.7,235.35,235.33,33.16]
[1758089577544,0.73,235.35,235.33,33.16]
[1758089580262,0.67,235.34,235.33,33.16]
[1758089580561,0.03,235.35,235.33,33.16]
[1758089580862,0.7,235.35,235.33,33.16]
[1758089582633,0.03,235.35,235.33,33.16]
[1758089584267,0.7,235.35,235.33,33.16]
[1758089584652,0.03,235.35,235.33,33.16]
[1758089585454,0.7,235.35,235.33,33.16]
[1758089586272,0.03,235.35,235.33,33.16]
[1758089588642,0.7,235.35,235.33,33.16]
[1758089588846,0.03,235.35,235.33,33.16]
[1758089589252,0.03,235.35,235.33,33.87]
[1758089590355,0.03,235.35,235.33,33.16]
[1758089590746,0.03,235.35,235.33,33.87]
[1758089590942,0.03,235.35,235.34,2.02166576]
[1758089591181,0.03,235.35,235.34,6.27083717]
[1758089591350,0.03,235.35,235.34,52.92643118]
[1758089592373,0.03,235.37,235.36,39.59559401]
[1758089592570,0.03,235.37,235.36,74.3921408]
[1758089592865,0.03,235.37,235.36,75.1021408]
[1758089594548,0.03,235.37,235.36,79.35095113]
[1758089597665,0.03,235.37,235.36,46.29095113]
[1758089597864,0.03,235.37,235.36,79.33095113]
[1758089599956,0.03,235.37,235.36,46.29095113]
[1758089600156,0.03,235.37,235.36,79.33095113]
[1758089603679,0.03,235.37,235.36,79.61527427]
[1758089603981,0.03,235.39,235.36,79.61527427]
[1758089603982,0.03,235.39,235.37,13.59559401]
[1758089604185,0.03,235.46,235.4,39.59559401]
[1758089604394,0.03,235.46,235.42,13.59559401]
[1758089604685,0.03,235.46,235.42,14.90725977]
[1758089604862,0.03,235.46,235.42,48.63725977]
[1758089605584,0.03,235.46,235.42,47.32559401]
[1758089605789,0.03,235.46,235.42,48.63725977]
[1758089606276,0.03,235.46,235.42,52.88498723]
[1758089607569,0.03,235.46,235.42,58.13165027]
[1758089613189,0.03,235.46,235.42,59.83258366]
[1758089615085,0.03,235.46,235.42,54.58592062]
[1758089615769,0.74,235.43,235.42,17.84332147]
[1758089615966,0.74,235.43,235.42,52.15498723]
[1758089617685,0.74,235.43,235.42,50.84332147]
[1758089617888,0.74,235.43,235.42,33.0]
[1758089621322,0.74,235.43,235.42,37.24772746]
[1758089621690,0.74,235.43,235.42,33.0]
[1758089623093,0.74,235.43,235.42,37.24772746]
[1758089625009,0.74,235.43,235.42,37.22772746]
[1758089625206,0.74,235.43,235.42,4.24772746]
[1758089625504,0.74,235.43,235.42,37.22772746]
[1758089626020,0.74,235.43,235.42,32.98]
[1758089626188,2.05166576,235.43,235.42,32.98]
[1758089626620,0.74,235.43,235.42,32.98]
[1758089629127,2.05166576,235.43,235.42,32.98]
[1758089629418,0.74,235.43,235.42,32.98]
[1758089631097,0.03,235.43,235.42,38.59939322]
[1758089631307,0.03,235.43,235.42,39.27939322]
[1758089632395,0.03,235.43,235.42,52.87498723]
[1758089633900,0.03,235.43,235.42,53.61005778]
[1758089636615,0.03,235.43,235.42,52.93005778]
[1758089637297,0.03,235.43,235.42,39.33446377]
[1758089640826,0.03,235.43,235.42,37.28772746]
[1758089641129,0.03,235.43,235.42,39.33446377]
[1758089641723,0.03,235.43,235.42,40.02446377]
[1758089642720,0.03,235.43,235.42,39.33446377]
[1758089644899,0.75,235.43,235.42,37.28772746]
[1758089645100,0.75,235.43,235.42,39.33446377]
[1758089645500,0.03,235.43,235.42,39.33446377]
[1758089645703,0.03,235.43,235.42,7.04446377]
[1758089645934,0.03,235.43,235.42,40.00446377]
[1758089646132,0.03,235.43,235.42,39.31446377]
[1758089647533,0.03,235.43,235.42,40.00446377]
[1758089647707,0.03,235.43,235.42,39.31446377]
[1758089647907,0.75,235.43,235.42,30.30772746]
[1758089648109,0.03,235.43,235.42,65.31446377]
[1758089650807,0.03,235.43,235.42,66.00446377]
[1758089651124,0.03,235.43,235.42,65.31446377]
[1758089651830,0.75,235.43,235.42,35.04673631]
[1758089652331,0.03,235.43,235.42,39.29446377]
[1758089652524,0.03,235.43,235.42,39.98446377]
[1758089652724,0.03,235.43,235.42,53.58005778]
[1758089654125,0.03,235.44,235.43,13.59559401]
[1758089654126,1e-08,235.44,235.43,13.59559401]
[1758089654324,1e-08,235.44,235.43,51.31906663]
[1758089655129,1e-08,235.44,235.43,55.56661367]
[1758089655730,1e-08,235.44,235.43,55.85093681]
[1758089661549,1e-08,235.44,235.43,22.91093681]
[1758089661748,1e-08,235.44,235.43,18.81746419]
[1758089661935,1e-08,235.44,235.43,55.83093681]
[1758089664749,1e-08,235.44,235.43,55.89093681]
[1758089666345,1e-08,235.44,235.43,22.97093681]
[1758089666648,1e-08,235.44,235.43,55.89093681]
[1758089669352,1e-08,235.44,235.43,55.20093681]
[1758089669540,1e-08,235.44,235.43,55.92093681]
[1758089670044,1e-08,235.44,235.43,52.86987736]
[1758089670365,0.65000001,235.44,235.43,19.94987736]
[1758089670532,0.65000001,235.44,235.43,52.86987736]
[1758089670863,0.65000001,235.44,235.43,19.94987736]
[1758089671068,0.65000001,235.44,235.43,52.86987736]
[1758089673154,0.65000001,235.44,235.43,19.94987736]
[1758089673358,0.65000001,235.44,235.43,52.84987736]
[1758089673866,0.65000001,235.44,235.43,46.55559401]
[1758089674173,0.65000001,235.44,235.43,48.60233032]
[1758089674533,0.65000001,235.44,235.43,52.84987736]
[1758089674749,0.65000001,235.44,235.43,48.60233032]
[1758089675856,0.65000001,235.44,235.43,52.84987736]
[1758089677160,1e-08,235.44,235.43,52.84987736]
[1758089679857,1e-08,235.44,235.43,53.56987736]
[1758089680238,1e-08,235.44,235.43,52.84987736]
[1758089680753,0.65000001,235.44,235.43,52.84987736]
[1758089681946,1e-08,235.44,235.43,52.84987736]
[1758089683659,0.18000001,235.45,235.43,52.84987736]
[1758089683863,0.03,235.46,235.45,26.0]
[1758089684061,0.03,235.46,235.45,60.94673631]
[1758089684976,0.03,235.46,235.45,65.19392254]
[1758089685687,0.03,235.46,235.45,65.91392254]
[1758089687090,0.03,235.46,235.45,65.19392254]
[1758089694097,0.03,235.46,235.45,65.91392254]
[1758089694299,0.03,235.46,235.45,65.19392254]
[1758089694980,0.68,235.46,235.45,32.29392254]
[1758089695184,0.68,235.46,235.45,32.88]
[1758089696888,0.68,235.46,235.45,37.12718623]
[1758089697903,0.68,235.46,235.45,38.4373058]
[1758089698784,0.03,235.46,235.45,38.4373058]
[1758089700511,0.03,235.46,235.45,32.94]
[1758089700699,0.03,235.46,235.45,34.25011957]
[1758089700894,0.03,235.46,235.45,38.4973058]
[1758089701614,0.03,235.46,235.45,39.1573058]
[1758089703690,0.03,235.46,235.45,52.75289981]
[1758089705599,0.03,235.48,235.47,39.59559401]
[1758089705814,0.03,235.48,235.47,78.01253907]
[1758089706019,0.03,235.48,235.47,78.67253907]
[1758089706801,0.03,235.48,235.47,80.3732555]
[1758089707421,0.03,235.48,235.47,83.74902161]
[1758089707915,0.03,235.48,235.47,82.43890204]
[1758089708112,0.03,235.48,235.47,83.74902161]
[1758089708490,0.03,235.48,235.47,80.3732555]
[1758089708691,0.7,235.48,235.47,1.70071643]
[1758089708915,0.7,235.48,235.47,32.86]
[1758089710425,0.03,235.48,235.47,32.86]
[1758089710595,0.7,235.48,235.47,32.86]
[1758089711704,0.7,235.48,235.45,0.06]
[1758089712029,0.67,235.47,235.46,32.84]
[1758089714323,0.03,235.48,235.46,32.84]
[1758089714498,0.03,235.48,235.46,37.08697412]
[1758089714835,0.7,235.48,235.46,37.08697412]
[1758089715609,0.03,235.48,235.46,37.08697412]
[1758089717009,0.03,235.48,235.47,1.97011957]
[1758089720622,0.03,235.48,235.46,4.24697412]
[1758089721125,0.03,235.48,235.47,32.84]
[1758089722199,0.03,235.48,235.47,34.15011957]
[1758089722702,0.03,235.48,235.47,38.39694506]
[1758089723505,0.7,235.48,235.47,34.15011957]
[1758089724034,0.7,235.48,235.47,32.84]
[1758089725106,0.7,235.48,235.45,1.37011957]
[1758089725107,0.7,235.48,235.45,0.06]
[1758089725308,0.68,235.47,235.46,32.84]
[1758089725813,0.68,235.47,235.45,0.06]
[1758089726208,0.68,235.47,235.46,32.84]
[1758089727506,4.92682549,235.47,235.46,32.84]
[1758089729235,4.92682549,235.47,235.45,0.06]
[1758089729417,1.31011957,235.46,235.45,0.06]
[1758089729619,1.31011957,235.46,235.45,32.88]
[1758089729836,1.99011957,235.46,235.45,32.88]
[1758089730533,2.27444271,235.46,235.45,0.06]
[1758089731718,26.0,235.44,235.43,0.06]
[1758089731918,1.59444271,235.44,235.43,0.06]
[1758089732138,2.27444271,235.44,235.43,0.06]
[1758089735022,28.27444271,235.44,235.43,0.06]
[1758089738747,27.99011957,235.44,235.43,0.06]
[1758089743539,26.68,235.44,235.43,0.06]
[1758089743740,27.99011957,235.44,235.43,0.06]
[1758089744440,32.2374862,235.44,235.43,0.06]
[1758089752836,31.5574862,235.44,235.43,0.06]
[1758089754334,32.2374862,235.44,235.43,0.06]
[1758089757752,32.97644881,235.44,235.43,0.06]
[1758089760352,32.29644881,235.44,235.43,0.06]
[1758089760802,30.24736663,235.44,235.43,0.76]
[1758089761076,4.2771925,235.45,235.43,0.76]
[1758089761371,0.03,235.45,235.43,0.76]
[1758089762259,0.03,235.45,235.43,2.80908218]
[1758089762772,0.03,235.45,235.44,0.7]
[1758089765758,2.07908218,235.45,235.43,0.06]
[1758089765968,6.29644881,235.44,235.43,0.06]
[1758089766170,6.29644881,235.44,235.43,0.76]
[1758089766979,6.29644881,235.44,235.43,0.06]
[1758089767180,6.29644881,235.44,235.43,0.76]
[1758089767382,4.24736663,235.44,235.43,0.76]
[1758089768075,0.03,235.45,235.43,0.76]
[1758089768378,0.03,235.45,235.43,0.06]
[1758089768678,0.03,235.45,235.44,0.7]
[1758089768982,2.07908218,235.45,235.44,0.7]
[1758089769962,6.32626841,235.45,235.44,0.7]
[1758089770364,4.27718623,235.45,235.44,0.7]
[1758089770559,2.07908218,235.45,235.44,0.7]
[1758089772587,0.03,235.45,235.44,0.7]
[1758089773175,0.03,235.45,235.44,2.74908218]
[1758089773391,0.03,235.45,235.44,0.7]
[1758089774465,0.03,235.45,235.44,2.74908218]
[1758089776470,0.03,235.45,235.44,0.7]
[1758089777176,0.03,235.45,235.44,2.74908218]
[1758089777378,0.03,235.45,235.44,6.99644881]
[1758089778805,0.03,235.45,235.44,35.54908218]
[1758089779166,0.03,235.45,235.44,39.79644881]
[1758089780467,0.03,235.45,235.44,37.74736663]
[1758089780668,0.03,235.45,235.44,39.79644881]
[1758089785282,0.03,235.45,235.44,53.39204282]
[1758089786696,0.03,235.45,235.44,53.67636596]
[1758089787077,0.03,235.45,235.44,55.37729935]
[1758089787573,0.03,235.45,235.44,55.15297621]
[1758089787769,0.03,235.45,235.44,53.43204282]
[1758089792275,0.03,235.45,235.44,20.65204282]
[1758089792482,0.03,235.45,235.44,34.88908218]
[1758089792690,0.03,235.45,235.44,2.10908218]
[1758089792895,0.03,235.45,235.44,32.84]
[1758089792896,0.69,235.45,235.44,32.84]
[1758089793585,0.03,235.45,235.44,32.84]
[1758089794700,0.69,235.45,235.44,32.84]
[1758089795176,0.69,235.45,235.44,0.06]
[1758089795177,2.73908218,235.45,235.44,0.06]
[1758089795378,2.73908218,235.45,235.44,32.84]
[1758089796005,0.03,235.45,235.44,32.84]
[1758089796184,0.03,235.45,235.44,35.54908218]
[1758089796891,0.03,235.45,235.44,2.10908218]
[1758089797098,0.03,235.45,235.44,34.88908218]
[1758089797385,0.03,235.45,235.44,35.54908218]
[1758089798006,0.03,235.45,235.44,53.39204282]
[1758089802708,0.03,235.45,235.44,79.39204282]
[1758089802906,0.03,235.45,235.44,77.34296064]
[1758089803107,0.03,235.45,235.44,79.39204282]
[1758089803587,0.03,235.45,235.44,79.67636596]
[1758089806210,0.03,235.45,235.44,78.73204282]
[1758089806393,0.03,235.45,235.44,79.39204282]
[1758089807511,0.03,235.45,235.44,81.09297621]
[1758089815215,0.03,235.45,235.44,80.43297621]
[1758089815424,0.03,235.45,235.44,81.09297621]
[1758089818705,0.03,235.45,235.44,55.37729935]
[1758089819810,0.03,235.45,235.44,54.63763544]
[1758089822340,0.03,235.45,235.44,54.61763544]
[1758089822507,0.03,235.45,235.44,80.61763544]
[1758089823017,0.03,235.45,235.44,79.6733123]
[1758089824121,0.03,235.45,235.44,77.97237891]
[1758089825502,0.03,235.45,235.44,73.72501228]
[1758089825704,0.69,235.45,235.44,32.82]
[1758089827127,0.69,235.45,235.44,34.12941827]
[1758089827832,0.03,235.45,235.44,34.12941827]
[1758089828017,0.03,235.45,235.44,38.3767849]
[1758089828323,0.03,235.45,235.44,52.63237891]
[1758089829311,0.03,235.45,235.44,51.97237891]
[1758089831033,0.03,235.45,235.44,52.63237891]
[1758089832928,0.03,235.45,235.44,54.33338463]
[1758089833430,0.03,235.45,235.44,54.61770777]
[1758089834019,0.03,235.45,235.44,49.426018]
[1758089834525,0.03,235.45,235.44,53.67338463]
[1758089835432,0.03,235.45,235.44,54.33338463]
[1758089836335,0.03,235.45,235.44,21.57338463]
[1758089836530,0.03,235.45,235.44,54.33338463]
[1758089837214,0.03,235.45,235.44,54.61770777]
[1758089844143,0.69,235.45,235.44,49.426018]
[1758089844347,0.03,235.45,235.44,49.426018]
[1758089844649,0.03,235.45,235.44,53.67338463]
[1758089847543,0.03,235.45,235.44,51.97237891]
[1758089847945,0.72,235.45,235.44,1.36941827]
[1758089848149,0.72,235.45,235.44,34.10941827]
[1758089848728,0.72,235.45,235.44,32.8]
[1758089852842,4.96718623,235.45,235.44,32.8]
[1758089856947,4.96718623,235.45,235.44,0.06]
[1758089857165,4.96718623,235.45,235.44,32.8]
[1758089857664,0.72,235.45,235.44,32.8]
[1758089858243,4.96718623,235.45,235.44,32.8]
[1758089858848,6.2766045,235.45,235.44,32.8]
[1758089859043,4.96718623,235.45,235.44,32.8]
[1758089859247,6.2766045,235.45,235.44,32.8]
[1758089862260,138.26092764,235.45,235.44,0.06]
[1758089863549,138.26092764,235.45,235.44,1e-08]
[1758089863751,138.65360081,235.45,235.44,1e-08]
[1758089864050,164.26092764,235.45,235.44,1e-08]
[1758089864571,135.97718623,235.45,235.44,1e-08]
[1758089866368,137.9766045,235.45,235.44,1e-08]
[1758089868079,135.97718623,235.45,235.44,1e-08]
[1758089868261,0.03,235.45,235.44,1e-08]
[1758089868859,4.27718623,235.45,235.44,1e-08]
[1758089870864,0.03,235.45,235.44,0.70000001]
[1758089878876,0.03,235.45,235.44,1e-08]
[1758089883963,0.69,235.45,235.44,1e-08]
[1758089884155,2.73756614,235.45,235.44,1e-08]
[1758089885384,6.98475237,235.45,235.44,1e-08]
[1758089891965,4.93718623,235.45,235.44,1e-08]
[1758089892199,6.98475237,235.45,235.44,1e-08]
[1758089893177,0.03,235.45,235.44,0.69000001]
[1758089893394,0.03,235.45,235.44,2.73756615]
[1758089894699,0.03,235.45,235.44,16.33316016]
[1758089895223,0.03,235.45,235.44,14.28559402]
[1758089895507,0.03,235.45,235.44,16.33316016]
[1758089896416,0.03,235.45,235.44,14.28559402]
[1758089896606,0.03,235.45,235.44,16.33316016]
[1758089899008,0.03,235.45,235.44,49.07316016]
[1758089903425,0.03,235.45,235.44,1e-08]
[1758089903610,0.03,235.45,235.44,20.04000001]
[1758089904716,0.69,235.45,235.44,20.04000001]
[1758089905700,0.03,235.45,235.44,20.04000001]
[1758089908427,2.75756614,235.45,235.44,20.04000001]
[1758089908610,2.75756614,235.45,235.44,1e-08]
[1758089910216,7.00475237,235.45,235.44,1e-08]
[1758089913418,33.28907551,235.45,235.44,1e-08]
[1758089914113,34.99109453,235.45,235.44,1e-08]
[1758089918533,8.99109453,235.45,235.44,1e-08]
[1758089919134,34.99109453,235.45,235.44,1e-08]
[1758089919441,8.99109453,235.45,235.44,1e-08]
[1758089923644,34.99109453,235.45,235.44,1e-08]
[1758089923956,6.94352839,235.45,235.44,1e-08]
[1758089924155,8.31109453,235.45,235.44,1e-08]
[1758089924654,8.99109453,235.45,235.44,1e-08]
[1758089926177,4.27718623,235.45,235.44,0.70000001]
[1758089926352,0.03,235.45,235.44,0.70000001]
[1758089928546,0.03,235.45,235.44,39.71493278]
[1758089929863,0.03,235.45,235.44,53.31052679]
[1758089933140,0.03,235.45,235.44,51.26296065]
[1758089933339,0.03,235.45,235.44,53.31052679]
[1758089941252,0.03,235.45,235.44,20.59052679]
[1758089941460,0.03,235.45,235.44,53.29052679]
[1758089941756,0.03,235.45,235.44,32.70000001]
[1758089942266,0.03,235.45,235.44,1e-08]
[1758089942474,0.03,235.45,235.44,32.70000001]
[1758089942775,0.03,235.45,235.44,35.46756615]
[1758089943871,0.03,235.45,235.44,34.7300333]
[1758089944057,0.03,235.45,235.44,34.0100333]
[1758089944263,0.03,235.45,235.44,34.7300333]
[1758089944474,0.03,235.45,235.44,38.97739993]
[1758089946862,0.03,235.45,235.44,32.70000001]
[1758089947065,0.03,235.45,235.44,34.7300333]
[1758089947882,0.03,235.45,235.44,34.0100333]
[1758089948059,0.03,235.45,235.44,34.7300333]
[1758089948587,0.03,235.45,235.44,52.57299394]
[1758089951375,0.03,235.45,235.44,51.85299394]
[1758089951893,0.03,235.45,235.44,52.57299394]
[1758089952313,0.03,235.45,235.44,0.72000001]
[1758089952472,0.03,235.45,235.44,34.7300333]
[1758089952671,0.03,235.45,235.44,48.32562731]
[1758089953396,0.03,235.45,235.44,48.60995045]
[1758089954414,0.03,235.45,235.44,49.03468711]
[1758089954582,1e-08,235.46,235.45,17.84278024]
[1758089954890,0.03,235.48,235.47,39.87991715]
[1758089955096,0.03,235.48,235.47,72.57991715]
[1758089955320,0.03,235.48,235.47,58.7]
[1758089955522,0.03,235.48,235.47,60.73003329]
[1758089955688,0.03,235.48,235.47,59.42]
[1758089955892,0.03,235.48,235.47,60.73003329]
[1758089956102,0.03,235.48,235.47,60.01003329]
[1758089956614,0.03,235.48,235.47,64.25685878]
[1758089957710,0.03,235.48,235.47,62.94682549]
[1758089957909,0.03,235.48,235.47,64.25685878]
[1758089958697,0.03,235.48,235.47,60.01003329]
[1758089959508,0.03,235.48,235.47,58.7]
[1758089959709,0.03,235.48,235.47,60.01003329]
[1758089959911,0.03,235.48,235.47,58.7]
[1758089960104,0.03,235.48,235.47,60.01003329]
[1758089963915,0.03,235.48,235.47,60.73003329]
[1758089965605,0.03,235.48,235.47,64.97685878]
[1758089966022,0.03,235.48,235.47,64.25685878]
[1758089968222,0.03,235.48,235.47,64.96685878]
[1758089968429,0.03,235.48,235.47,64.25685878]
[1758089968726,0.03,235.48,235.47,58.7]
[1758089969631,0.73,235.48,235.47,58.7]
[1758089969816,0.03,235.48,235.47,58.7]
[1758089970123,0.03,235.48,235.47,26.0]
[1758089970299,0.73,235.48,235.47,32.7]
[1758089970507,0.73,235.48,235.44,3.01096669]
[1758089970713,0.7,235.47,235.45,32.7]
[1758089971327,0.03,235.48,235.45,32.7]
[1758089971513,0.03,235.48,235.45,34.01003329]
[1758089971724,0.7,235.47,235.44,4.27653192]
[1758089971926,0.03,235.48,235.44,4.27653192]
[1758089971927,1.31003329,235.45,235.44,1e-08]
[1758089972132,1.31003329,235.45,235.44,32.70000001]
[1758089972340,2.01003329,235.45,235.44,32.23000001]
[1758089972513,4.24736663,235.44,235.43,0.06]
[1758089972714,5.55739992,235.44,235.43,32.86]
[1758089973047,6.16739992,235.44,235.43,32.86]
[1758089975559,0.28432314,235.43,235.42,1e-08]
[1758089975854,6.83448959,235.43,235.42,1e-08]
[1758089976013,7.44448959,235.43,235.42,1e-08]
[1758089976411,0.28432314,235.41,235.39,1e-08]
[1758089976613,1.31003329,235.4,235.39,1e-08]
[1758089976812,6.45244479,235.4,235.39,1e-08]
[1758089978329,26.0,235.38,235.37,0.06]
[1758089978640,27.59435643,235.38,235.37,0.06]
[1758089978844,32.45280574,235.38,235.37,0.06]
[1758089980464,0.28432314,235.37,235.35,0.06]
[1758089980641,1.92003329,235.36,235.35,0.06]
[1758089980957,6.16884362,235.36,235.35,0.06]
[1758089981176,18.93778954,235.36,235.35,0.06]
[1758089981457,6.16884362,235.36,235.35,0.06]
[1758089984441,18.93778955,235.36,235.35,0.06]
[1758089984949,6.16884362,235.36,235.35,0.06]
[1758089985353,18.93778954,235.36,235.35,0.06]
[1758089985550,19.22211268,235.36,235.35,0.06]
[1758089987062,19.22211268,235.36,235.35,1e-08]
[1758089990041,32.81770669,235.36,235.35,1e-08]
[1758089993264,32.20770669,235.36,235.35,1e-08]
[1758089993772,32.84770669,235.36,235.35,1e-08]
[1758089994856,26.28432314,235.34,235.33,1e-08]
[1758089995063,27.59435643,235.34,235.33,1e-08]
[1758089995364,28.20435643,235.34,235.33,1e-08]
[1758089995761,29.90724496,235.34,235.33,1e-08]
[1758089996066,29.29724496,235.34,235.33,1e-08]
[1758089996437,34.15641637,235.34,235.33,1e-08]
[1758089997469,33.54641637,235.34,235.33,1e-08]
[1758089998243,31.95205994,235.34,235.33,0.68000001]
[1758089998443,31.5592047,235.34,235.33,0.68000001]
[1758089998667,31.84352784,235.34,235.33,1e-08]
[1758089999061,31.84352784,235.34,235.33,0.68000001]
[1758089999278,31.5592047,235.34,235.33,0.68000001]
[1758090001340,31.5592047,235.34,235.33,1e-08]
[1758090001576,31.84352784,235.34,235.33,1e-08]
[1758090002044,33.54627139,235.34,235.33,1e-08]
[1758090002248,33.54627139,235.34,235.33,0.68000001]
[1758090002462,33.26194825,235.34,235.33,0.68000001]
[1758090002670,30.24917141,235.34,235.33,0.68000001]
[1758090002845,31.5592047,235.34,235.33,0.68000001]
[1758090003048,5.5592047,235.34,235.33,0.68000001]
[1758090003367,4.27895008,235.36,235.33,0.68000001]
[1758090004476,0.03,235.36,235.33,0.68000001]
[1758090004644,0.03,235.36,235.34,0.68]
[1758090004645,2.04945081,235.35,235.34,0.68]
[1758090004847,2.04945081,235.35,235.33,1e-08]
[1758090005049,2.04945081,235.34,235.33,0.68000001]
[1758090006468,6.29862222,235.34,235.33,0.68000001]
[1758090007963,6.29862222,235.34,235.33,1e-08]
[1758090008146,4.24917141,235.34,235.33,1e-08]
[1758090008349,6.29862222,235.34,235.33,1e-08]
[1758090009565,8.89561642,235.34,235.33,1e-08]
[1758090009751,8.28561642,235.34,235.33,1e-08]
[1758090011469,8.31561642,235.34,235.33,1e-08]
[1758090012080,8.31561642,235.34,235.33,0.68000001]
[1758090012262,8.03129328,235.34,235.33,0.68000001]
[1758090012474,6.32862222,235.34,235.33,0.68000001]
[1758090013652,4.27917141,235.34,235.33,1e-08]
[1758090013855,6.32862222,235.34,235.33,1e-08]
[1758090014072,7.22294536,235.34,235.33,1e-08]
[1758090014251,8.31576139,235.34,235.33,1e-08]
[1758090015078,8.92576139,235.34,235.33,1e-08]
[1758090015277,32.58348709,235.31,235.3,0.06]
[1758090015889,34.28652061,235.31,235.3,0.06]
[1758090016869,36.94597142,235.31,235.3,0.06]
[1758090017085,36.33597142,235.31,235.3,0.06]
[1758090017395,36.33597142,235.31,235.3,0.74]
[1758090017396,34.28652061,235.31,235.3,0.74]